Workbook

Sheet 200
A1: Data | C1: points | D1: =COUNT(D3:D261) -> 200 | G1: Path of a salesman | AF1: 29842.54044 | AG1: 29758.24647
A2: № | B2: Name | C2: X | D2: Y | G2: № | H2: Name | I2: X | J2: Y | L2: Length
A3: 1 | B3: Point 1 | C3: 2995 | D3: 264 | G3: 1 | H3: =IF($G3<>"",INDEX(B$3:B$202,$G3),NA()) -> Point 1 | I3: =IF($G3<>"",INDEX(C$3:C$202,$G3),NA()) -> 2995 | J3: =IF($G3<>"",INDEX(D$3:D$202,$G3),NA()) -> 264 | L3: =IF(AND(ISNUMBER(I3:J4)),SQRT((I3-I4)^2+(J3-J4)^2),"") -> 157.5436447 | AF3: 1 | AG3: 1
A4: 2 | B4: Point 2 | C4: 202 | D4: 233 | G4: 156 | H4: Point 156 | I4: 3017 | J4: 108 | L4: =IF(AND(ISNUMBER(I4:J5)),SQRT((I4-I5)^2+(J4-J5)^2),"") -> 63.70243323 | AF4: 50 | AG4: 156
A5: 3 | B5: Point 3 | C5: 981 | D5: 848 | G5: 200 | H5: Point 200 | I5: 3060 | J5: 155 | L5: =IF(AND(ISNUMBER(I5:J6)),SQRT((I5-I6)^2+(J5-J6)^2),"") -> 88.39117603 | AF5: 175 | AG5: 200
A6: 4 | B6: Point 4 | C6: 1346 | D6: 408 | G6: 126 | H6: Point 126 | I6: 3123 | J6: 217 | L6: =IF(AND(ISNUMBER(I6:J7)),SQRT((I6-I7)^2+(J6-J7)^2),"") -> 181.0690476 | AF6: 130 | AG6: 126
A7: 5 | B7: Point 5 | C7: 781 | D7: 670 | G7: 162 | H7: Point 162 | I7: 3292 | J7: 152 | L7: =IF(AND(ISNUMBER(I7:J8)),SQRT((I7-I8)^2+(J7-J8)^2),"") -> 258.3060201 | AF7: 34 | AG7: 162
A8: 6 | B8: Point 6 | C8: 1009 | D8: 1001 | G8: 94 | H8: Point 94 | I8: 3503 | J8: 301 | L8: =IF(AND(ISNUMBER(I8:J9)),SQRT((I8-I9)^2+(J8-J9)^2),"") -> 179.4463708 | N8: 15 | AF8: 81 | AG8: 94
A9: 7 | B9: Point 7 | C9: 2927 | D9: 1777 | G9: 32 | H9: Point 32 | I9: 3538 | J9: 125 | L9: =IF(AND(ISNUMBER(I9:J10)),SQRT((I9-I10)^2+(J9-J10)^2),"") -> 58.69412236 | N9: =INDEX({"Quickly";"Normally";"Slowly";"Very slowly"},MATCH(N8,{0;9;12;15})) -> Very slowly | AF9: 180 | AG9: 32
A10: 8 | B10: Point 8 | C10: 2982 | D10: 949 | G10: 105 | H10: Point 105 | I10: 3595 | J10: 111 | L10: =IF(AND(ISNUMBER(I10:J11)),SQRT((I10-I11)^2+(J10-J11)^2),"") -> 176.3235662 | AF10: 120 | AG10: 105
A11: 9 | B11: Point 9 | C11: 555 | D11: 1121 | G11: 97 | H11: Point 97 | I11: 3766 | J11: 154 | L11: =IF(AND(ISNUMBER(I11:J12)),SQRT((I11-I12)^2+(J11-J12)^2),"") -> 55.4436651 | N11: Total: | O11: =L203 -> 29758.24647 | AF11: 138 | AG11: 97
A12: 10 | B12: Point 10 | C12: 464 | D12: 1302 | G12: 167 | H12: Point 167 | I12: 3821 | J12: 147 | L12: =IF(AND(ISNUMBER(I12:J13)),SQRT((I12-I13)^2+(J12-J13)^2),"") -> 336.1086134 | AF12: 52 | AG12: 167
A13: 11 | B13: Point 11 | C13: 3452 | D13: 637 | G13: 98 | H13: Point 98 | I13: 3946 | J13: 459 | L13: =IF(AND(ISNUMBER(I13:J14)),SQRT((I13-I14)^2+(J13-J14)^2),"") -> 57.55866572 | AF13: 8 | AG13: 98
A14: 12 | B14: Point 12 | C14: 571 | D14: 1982 | G14: 170 | H14: Point 170 | I14: 3938 | J14: 516 | L14: =IF(AND(ISNUMBER(I14:J15)),SQRT((I14-I15)^2+(J14-J15)^2),"") -> 24.18677324 | AF14: 66 | AG14: 170
A15: 13 | B15: Point 13 | C15: 2656 | D15: 128 | G15: 49 | H15: Point 49 | I15: 3935 | J15: 540 | L15: =IF(AND(ISNUMBER(I15:J16)),SQRT((I15-I16)^2+(J15-J16)^2),"") -> 205.7304061 | AF15: 38 | AG15: 49
A16: 14 | B16: Point 14 | C16: 1623 | D16: 1723 | G16: 153 | H16: Point 153 | I16: 3896 | J16: 742 | L16: =IF(AND(ISNUMBER(I16:J17)),SQRT((I16-I17)^2+(J16-J17)^2),"") -> 53 | AF16: 186 | AG16: 153
A17: 15 | B17: Point 15 | C17: 2067 | D17: 694 | G17: 70 | H17: Point 70 | I17: 3868 | J17: 697 | L17: =IF(AND(ISNUMBER(I17:J18)),SQRT((I17-I18)^2+(J17-J18)^2),"") -> 188.0877455 | AF17: 149 | AG17: 70
A18: 16 | B18: Point 16 | C18: 1725 | D18: 927 | G18: 139 | H18: Point 139 | I18: 3829 | J18: 513 | L18: =IF(AND(ISNUMBER(I18:J19)),SQRT((I18-I19)^2+(J18-J19)^2),"") -> 160.1530518 | AF18: 169 | AG18: 139
A19: 17 | B19: Point 17 | C19: 3600 | D19: 459 | G19: 140 | H19: Point 140 | I19: 3684 | J19: 445 | L19: =IF(AND(ISNUMBER(I19:J20)),SQRT((I19-I20)^2+(J19-J20)^2),"") -> 85.15867542 | AF19: 126 | AG19: 140
A20: 18 | B20: Point 18 | C20: 1109 | D20: 1196 | G20: 17 | H20: Point 17 | I20: 3600 | J20: 459 | L20: =IF(AND(ISNUMBER(I20:J21)),SQRT((I20-I21)^2+(J20-J21)^2),"") -> 55.00909016 | AF20: 162 | AG20: 17
A21: 19 | B21: Point 19 | C21: 366 | D21: 339 | G21: 90 | H21: Point 90 | I21: 3599 | J21: 514 | L21: =IF(AND(ISNUMBER(I21:J22)),SQRT((I21-I22)^2+(J21-J22)^2),"") -> 189.9315666 | AF21: 94 | AG21: 90
A22: 20 | B22: Point 20 | C22: 778 | D22: 1282 | G22: 89 | H22: Point 89 | I22: 3642 | J22: 699 | L22: =IF(AND(ISNUMBER(I22:J23)),SQRT((I22-I23)^2+(J22-J23)^2),"") -> 199.859951 | AF22: 32 | AG22: 89
A23: 21 | B23: Point 21 | C23: 386 | D23: 1616 | G23: 11 | H23: Point 11 | I23: 3452 | J23: 637 | L23: =IF(AND(ISNUMBER(I23:J24)),SQRT((I23-I24)^2+(J23-J24)^2),"") -> 174.4706279 | AF23: 105 | AG23: 11
A24: 22 | B24: Point 22 | C24: 3918 | D24: 1217 | G24: 168 | H24: Point 168 | I24: 3370 | J24: 791 | L24: =IF(AND(ISNUMBER(I24:J25)),SQRT((I24-I25)^2+(J24-J25)^2),"") -> 129.3213053 | AF24: 97 | AG24: 168
A25: 23 | B25: Point 23 | C25: 3332 | D25: 1049 | G25: 110 | H25: Point 110 | I25: 3438 | J25: 901 | L25: =IF(AND(ISNUMBER(I25:J26)),SQRT((I25-I26)^2+(J25-J26)^2),"") -> 182.0439507 | AF25: 167 | AG25: 110
A26: 24 | B26: Point 24 | C26: 2597 | D26: 349 | G26: 23 | H26: Point 23 | I26: 3332 | J26: 1049 | L26: =IF(AND(ISNUMBER(I26:J27)),SQRT((I26-I27)^2+(J26-J27)^2),"") -> 212.5511703 | AF26: 98 | AG26: 23
A27: 25 | B27: Point 25 | C27: 811 | D27: 1295 | G27: 42 | H27: Point 42 | I27: 3535 | J27: 1112 | L27: =IF(AND(ISNUMBER(I27:J28)),SQRT((I27-I28)^2+(J27-J28)^2),"") -> 383.7512215 | AF27: 170 | AG27: 42
A28: 26 | B28: Point 26 | C28: 241 | D28: 1069 | G28: 173 | H28: Point 173 | I28: 3918 | J28: 1088 | L28: =IF(AND(ISNUMBER(I28:J29)),SQRT((I28-I29)^2+(J28-J29)^2),"") -> 87.7097486 | AF28: 49 | AG28: 173
A29: 27 | B29: Point 27 | C29: 2658 | D29: 360 | G29: 185 | H29: Point 185 | I29: 3876 | J29: 1165 | L29: =IF(AND(ISNUMBER(I29:J30)),SQRT((I29-I30)^2+(J29-J30)^2),"") -> 66.84309987 | AF29: 153 | AG29: 185
A30: 28 | B30: Point 28 | C30: 394 | D30: 1944 | G30: 22 | H30: Point 22 | I30: 3918 | J30: 1217 | L30: =IF(AND(ISNUMBER(I30:J31)),SQRT((I30-I31)^2+(J30-J31)^2),"") -> 227.4313083 | AF30: 70 | AG30: 22
A31: 29 | B31: Point 29 | C31: 3786 | D31: 1862 | G31: 193 | H31: Point 193 | I31: 3904 | J31: 1444 | L31: =IF(AND(ISNUMBER(I31:J32)),SQRT((I31-I32)^2+(J31-J32)^2),"") -> 53.85164807 | AF31: 139 | AG31: 193
A32: 30 | B32: Point 30 | C32: 264 | D32: 36 | G32: 111 | H32: Point 111 | I32: 3858 | J32: 1472 | L32: =IF(AND(ISNUMBER(I32:J33)),SQRT((I32-I33)^2+(J32-J33)^2),"") -> 189.7076699 | AF32: 140 | AG32: 111
A33: 31 | B33: Point 31 | C33: 2050 | D33: 1833 | G33: 103 | H33: Point 103 | I33: 3675 | J33: 1522 | L33: =IF(AND(ISNUMBER(I33:J34)),SQRT((I33-I34)^2+(J33-J34)^2),"") -> 162.2004932 | AF33: 17 | AG33: 103
A34: 32 | B34: Point 32 | C34: 3538 | D34: 125 | G34: 58 | H34: Point 58 | I34: 3805 | J34: 1619 | L34: =IF(AND(ISNUMBER(I34:J35)),SQRT((I34-I35)^2+(J34-J35)^2),"") -> 210.0119044 | AF34: 90 | AG34: 58
A35: 33 | B35: Point 33 | C35: 1646 | D35: 1817 | G35: 128 | H35: Point 128 | I35: 3834 | J35: 1827 | L35: =IF(AND(ISNUMBER(I35:J36)),SQRT((I35-I36)^2+(J35-J36)^2),"") -> 59.40538696 | AF35: 89 | AG35: 128
A36: 34 | B36: Point 34 | C36: 2993 | D36: 624 | G36: 29 | H36: Point 29 | I36: 3786 | J36: 1862 | L36: =IF(AND(ISNUMBER(I36:J37)),SQRT((I36-I37)^2+(J36-J37)^2),"") -> 5 | AF36: 11 | AG36: 29
A37: 35 | B37: Point 35 | C37: 547 | D37: 25 | G37: 191 | H37: Point 191 | I37: 3782 | J37: 1865 | L37: =IF(AND(ISNUMBER(I37:J38)),SQRT((I37-I38)^2+(J37-J38)^2),"") -> 199.6246478 | AF37: 168 | AG37: 191
A38: 36 | B38: Point 36 | C38: 3373 | D38: 1902 | G38: 197 | H38: Point 197 | I38: 3611 | J38: 1968 | L38: =IF(AND(ISNUMBER(I38:J39)),SQRT((I38-I39)^2+(J38-J39)^2),"") -> 160.8228839 | AF38: 110 | AG38: 197
A39: 37 | B39: Point 37 | C39: 460 | D39: 267 | G39: 176 | H39: Point 176 | I39: 3453 | J39: 1998 | L39: =IF(AND(ISNUMBER(I39:J40)),SQRT((I39-I40)^2+(J39-J40)^2),"") -> 122.8006515 | AF39: 23 | AG39: 176
A40: 38 | B40: Point 38 | C40: 3060 | D40: 781 | G40: 199 | H40: Point 199 | I40: 3515 | J40: 1892 | L40: =IF(AND(ISNUMBER(I40:J41)),SQRT((I40-I41)^2+(J40-J41)^2),"") -> 41.77319715 | AF40: 42 | AG40: 199
A41: 39 | B41: Point 39 | C41: 1828 | D41: 456 | G41: 108 | H41: Point 108 | I41: 3507 | J41: 1851 | L41: =IF(AND(ISNUMBER(I41:J42)),SQRT((I41-I42)^2+(J41-J42)^2),"") -> 99.74467404 | AF41: 173 | AG41: 108
A42: 40 | B42: Point 40 | C42: 1021 | D42: 962 | G42: 129 | H42: Point 129 | I42: 3417 | J42: 1808 | L42: =IF(AND(ISNUMBER(I42:J43)),SQRT((I42-I43)^2+(J42-J43)^2),"") -> 103.788246 | AF42: 185 | AG42: 129
A43: 41 | B43: Point 41 | C43: 2347 | D43: 388 | G43: 36 | H43: Point 36 | I43: 3373 | J43: 1902 | L43: =IF(AND(ISNUMBER(I43:J44)),SQRT((I43-I44)^2+(J43-J44)^2),"") -> 85.0411665 | AF43: 22 | AG43: 36
A44: 42 | B44: Point 42 | C44: 3535 | D44: 1112 | G44: 159 | H44: Point 159 | I44: 3317 | J44: 1966 | L44: =IF(AND(ISNUMBER(I44:J45)),SQRT((I44-I45)^2+(J44-J45)^2),"") -> 99.24716621 | AF44: 193 | AG44: 159
A45: 43 | B45: Point 43 | C45: 1529 | D45: 581 | G45: 75 | H45: Point 75 | I45: 3220 | J45: 1945 | L45: =IF(AND(ISNUMBER(I45:J46)),SQRT((I45-I46)^2+(J45-J46)^2),"") -> 48.01041554 | AF45: 111 | AG45: 75
A46: 44 | B46: Point 44 | C46: 1203 | D46: 385 | G46: 67 | H46: Point 67 | I46: 3248 | J46: 1906 | L46: =IF(AND(ISNUMBER(I46:J47)),SQRT((I46-I47)^2+(J46-J47)^2),"") -> 78.05767099 | AF46: 103 | AG46: 67
A47: 45 | B47: Point 45 | C47: 1787 | D47: 1902 | G47: 132 | H47: Point 132 | I47: 3245 | J47: 1828 | L47: =IF(AND(ISNUMBER(I47:J48)),SQRT((I47-I48)^2+(J47-J48)^2),"") -> 322.0636583 | AF47: 58 | AG47: 132
A48: 46 | B48: Point 46 | C48: 2740 | D48: 1101 | G48: 7 | H48: Point 7 | I48: 2927 | J48: 1777 | L48: =IF(AND(ISNUMBER(I48:J49)),SQRT((I48-I49)^2+(J48-J49)^2),"") -> 268.7601161 | AF48: 128 | AG48: 7
A49: 47 | B49: Point 47 | C49: 555 | D49: 1753 | G49: 171 | H49: Point 171 | I49: 2741 | J49: 1583 | L49: =IF(AND(ISNUMBER(I49:J50)),SQRT((I49-I50)^2+(J49-J50)^2),"") -> 117.0042734 | AF49: 29 | AG49: 171
A50: 48 | B50: Point 48 | C50: 47 | D50: 363 | G50: 61 | H50: Point 61 | I50: 2834 | J50: 1512 | L50: =IF(AND(ISNUMBER(I50:J51)),SQRT((I50-I51)^2+(J50-J51)^2),"") -> 117.239072 | AF50: 191 | AG50: 61
A51: 49 | B51: Point 49 | C51: 3935 | D51: 540 | G51: 112 | H51: Point 112 | I51: 2937 | J51: 1568 | L51: =IF(AND(ISNUMBER(I51:J52)),SQRT((I51-I52)^2+(J51-J52)^2),"") -> 82.68010643 | AF51: 197 | AG51: 112
A52: 50 | B52: Point 50 | C52: 3062 | D52: 329 | G52: 74 | H52: Point 74 | I52: 3007 | J52: 1524 | L52: =IF(AND(ISNUMBER(I52:J53)),SQRT((I52-I53)^2+(J52-J53)^2),"") -> 149.9133083 | AF52: 176 | AG52: 74
A53: 51 | B53: Point 51 | C53: 387 | D53: 199 | G53: 198 | H53: Point 198 | I53: 3114 | J53: 1629 | L53: =IF(AND(ISNUMBER(I53:J54)),SQRT((I53-I54)^2+(J53-J54)^2),"") -> 204.599609 | AF53: 199 | AG53: 198
A54: 52 | B54: Point 52 | C54: 2901 | D54: 920 | G54: 195 | H54: Point 195 | I54: 3220 | J54: 1454 | L54: =IF(AND(ISNUMBER(I54:J55)),SQRT((I54-I55)^2+(J54-J55)^2),"") -> 95.96353474 | AF54: 108 | AG54: 195
A55: 53 | B55: Point 53 | C55: 931 | D55: 512 | G55: 101 | H55: Point 101 | I55: 3140 | J55: 1401 | L55: =IF(AND(ISNUMBER(I55:J56)),SQRT((I55-I56)^2+(J55-J56)^2),"") -> 149.4958193 | AF55: 129 | AG55: 101
A56: 54 | B56: Point 54 | C56: 1766 | D56: 692 | G56: 190 | H56: Point 190 | I56: 3058 | J56: 1276 | L56: =IF(AND(ISNUMBER(I56:J57)),SQRT((I56-I57)^2+(J56-J57)^2),"") -> 152.6892269 | AF56: 36 | AG56: 190
A57: 55 | B57: Point 55 | C57: 401 | D57: 980 | G57: 121 | H57: Point 121 | I57: 3133 | J57: 1143 | L57: =IF(AND(ISNUMBER(I57:J58)),SQRT((I57-I58)^2+(J57-J58)^2),"") -> 395.237903 | AF57: 159 | AG57: 121
A58: 56 | B58: Point 56 | C58: 149 | D58: 1629 | G58: 46 | H58: Point 46 | I58: 2740 | J58: 1101 | L58: =IF(AND(ISNUMBER(I58:J59)),SQRT((I58-I59)^2+(J58-J59)^2),"") -> 127.1377206 | AF58: 75 | AG58: 46
A59: 57 | B59: Point 57 | C59: 2214 | D59: 1977 | G59: 146 | H59: Point 146 | I59: 2698 | J59: 1221 | L59: =IF(AND(ISNUMBER(I59:J60)),SQRT((I59-I60)^2+(J59-J60)^2),"") -> 61.68468205 | AF59: 67 | AG59: 146
A60: 58 | B60: Point 58 | C60: 3805 | D60: 1619 | G60: 125 | H60: Point 125 | I60: 2639 | J60: 1239 | L60: =IF(AND(ISNUMBER(I60:J61)),SQRT((I60-I61)^2+(J60-J61)^2),"") -> 30.14962686 | AF60: 132 | AG60: 125
A61: 59 | B61: Point 59 | C61: 1179 | D61: 969 | G61: 109 | H61: Point 109 | I61: 2642 | J61: 1269 | L61: =IF(AND(ISNUMBER(I61:J62)),SQRT((I61-I62)^2+(J61-J62)^2),"") -> 330.0015151 | AF61: 7 | AG61: 109
A62: 60 | B62: Point 60 | C62: 1017 | D62: 333 | G62: 134 | H62: Point 134 | I62: 2312 | J62: 1270 | L62: =IF(AND(ISNUMBER(I62:J63)),SQRT((I62-I63)^2+(J62-J63)^2),"") -> 293.8043567 | AF62: 171 | AG62: 134
A63: 61 | B63: Point 61 | C63: 2834 | D63: 1512 | G63: 69 | H63: Point 69 | I63: 2223 | J63: 990 | L63: =IF(AND(ISNUMBER(I63:J64)),SQRT((I63-I64)^2+(J63-J64)^2),"") -> 253.2370431 | AF63: 61 | AG63: 69
A64: 62 | B64: Point 62 | C64: 634 | D64: 294 | G64: 158 | H64: Point 158 | I64: 2000 | J64: 1110 | L64: =IF(AND(ISNUMBER(I64:J65)),SQRT((I64-I65)^2+(J64-J65)^2),"") -> 53.75872022 | AF64: 112 | AG64: 158
A65: 63 | B65: Point 63 | C65: 1819 | D65: 814 | G65: 184 | H65: Point 184 | I65: 2009 | J65: 1163 | L65: =IF(AND(ISNUMBER(I65:J66)),SQRT((I65-I66)^2+(J65-J66)^2),"") -> 31.144823 | AF65: 74 | AG65: 184
A66: 64 | B66: Point 64 | C66: 1393 | D66: 859 | G66: 107 | H66: Point 107 | I66: 2030 | J66: 1186 | L66: =IF(AND(ISNUMBER(I66:J67)),SQRT((I66-I67)^2+(J66-J67)^2),"") -> 266.3080923 | AF66: 198 | AG66: 107
A67: 65 | B67: Point 65 | C67: 1768 | D67: 1578 | G67: 157 | H67: =IF($G67<>"",INDEX(B$3:B$202,$G67),NA()) -> Point 157 | I67: =IF($G67<>"",INDEX(C$3:C$202,$G67),NA()) -> 2132 | J67: =IF($G67<>"",INDEX(D$3:D$202,$G67),NA()) -> 1432 | L67: =IF(AND(ISNUMBER(I67:J68)),SQRT((I67-I68)^2+(J67-J68)^2),"") -> 158.3982323 | AF67: 195 | AG67: 157
A68: 66 | B68: Point 66 | C68: 3023 | D68: 871 | G68: 194 | H68: Point 194 | I68: 2191 | J68: 1579 | L68: =IF(AND(ISNUMBER(I68:J69)),SQRT((I68-I69)^2+(J68-J69)^2),"") -> 30.01666204 | AF68: 101 | AG68: 194
A69: 67 | B69: Point 67 | C69: 3248 | D69: 1906 | G69: 80 | H69: Point 80 | I69: 2221 | J69: 1578 | L69: =IF(AND(ISNUMBER(I69:J70)),SQRT((I69-I70)^2+(J69-J70)^2),"") -> 135.3698637 | AF69: 190 | AG69: 80
A70: 68 | B70: Point 68 | C70: 1632 | D70: 1742 | G70: 76 | H70: Point 76 | I70: 2356 | J70: 1568 | L70: =IF(AND(ISNUMBER(I70:J71)),SQRT((I70-I71)^2+(J70-J71)^2),"") -> 141.3966053 | AF70: 121 | AG70: 76
A71: 69 | B71: Point 69 | C71: 2223 | D71: 990 | G71: 127 | H71: Point 127 | I71: 2489 | J71: 1520 | L71: =IF(AND(ISNUMBER(I71:J72)),SQRT((I71-I72)^2+(J71-J72)^2),"") -> 241.0186715 | AF71: 46 | AG71: 127
A72: 70 | B72: Point 70 | C72: 3868 | D72: 697 | G72: 161 | H72: Point 161 | I72: 2408 | J72: 1747 | L72: =IF(AND(ISNUMBER(I72:J73)),SQRT((I72-I73)^2+(J72-J73)^2),"") -> 105.5461984 | AF72: 146 | AG72: 161
A73: 71 | B73: Point 71 | C73: 1541 | D73: 354 | G73: 135 | H73: Point 135 | I73: 2426 | J73: 1851 | L73: =IF(AND(ISNUMBER(I73:J74)),SQRT((I73-I74)^2+(J73-J74)^2),"") -> 106.5504575 | AF73: 125 | AG73: 135
A74: 72 | B74: Point 72 | C74: 2374 | D74: 1944 | G74: 72 | H74: Point 72 | I74: 2374 | J74: 1944 | L74: =IF(AND(ISNUMBER(I74:J75)),SQRT((I74-I75)^2+(J74-J75)^2),"") -> 163.3676835 | AF74: 109 | AG74: 72
A75: 73 | B75: Point 73 | C75: 1962 | D75: 389 | G75: 57 | H75: Point 57 | I75: 2214 | J75: 1977 | L75: =IF(AND(ISNUMBER(I75:J76)),SQRT((I75-I76)^2+(J75-J76)^2),"") -> 218.2475659 | AF75: 134 | AG75: 57
A76: 74 | B76: Point 74 | C76: 3007 | D76: 1524 | G76: 31 | H76: Point 31 | I76: 2050 | J76: 1833 | L76: =IF(AND(ISNUMBER(I76:J77)),SQRT((I76-I77)^2+(J76-J77)^2),"") -> 99.46356117 | AF76: 69 | AG76: 31
A77: 75 | B77: Point 75 | C77: 3220 | D77: 1945 | G77: 78 | H77: Point 78 | I77: 2028 | J77: 1736 | L77: =IF(AND(ISNUMBER(I77:J78)),SQRT((I77-I78)^2+(J77-J78)^2),"") -> 120.8801059 | AF77: 158 | AG77: 78
A78: 76 | B78: Point 76 | C78: 2356 | D78: 1568 | G78: 99 | H78: Point 99 | I78: 1994 | J78: 1852 | L78: =IF(AND(ISNUMBER(I78:J79)),SQRT((I78-I79)^2+(J78-J79)^2),"") -> 212.9530465 | AF78: 184 | AG78: 99
A79: 77 | B79: Point 77 | C79: 1604 | D79: 706 | G79: 45 | H79: Point 45 | I79: 1787 | J79: 1902 | L79: =IF(AND(ISNUMBER(I79:J80)),SQRT((I79-I80)^2+(J79-J80)^2),"") -> 92.64987858 | AF79: 107 | AG79: 45
A80: 78 | B80: Point 78 | C80: 2028 | D80: 1736 | G80: 166 | H80: Point 166 | I80: 1697 | J80: 1924 | L80: =IF(AND(ISNUMBER(I80:J81)),SQRT((I80-I81)^2+(J80-J81)^2),"") -> 118.5326959 | AF80: 157 | AG80: 166
A81: 79 | B81: Point 79 | C81: 2581 | D81: 121 | G81: 33 | H81: Point 33 | I81: 1646 | J81: 1817 | L81: =IF(AND(ISNUMBER(I81:J82)),SQRT((I81-I82)^2+(J81-J82)^2),"") -> 76.29547824 | AF81: 194 | AG81: 33
A82: 80 | B82: Point 80 | C82: 2221 | D82: 1578 | G82: 68 | H82: Point 68 | I82: 1632 | J82: 1742 | L82: =IF(AND(ISNUMBER(I82:J83)),SQRT((I82-I83)^2+(J82-J83)^2),"") -> 21.02379604 | AF82: 80 | AG82: 68
A83: 81 | B83: Point 81 | C83: 2944 | D83: 632 | G83: 14 | H83: Point 14 | I83: 1623 | J83: 1723 | L83: =IF(AND(ISNUMBER(I83:J84)),SQRT((I83-I84)^2+(J83-J84)^2),"") -> 147.4109901 | AF83: 76 | AG83: 14
A84: 82 | B84: Point 82 | C84: 1082 | D84: 1561 | G84: 187 | H84: Point 187 | I84: 1526 | J84: 1612 | L84: =IF(AND(ISNUMBER(I84:J85)),SQRT((I84-I85)^2+(J84-J85)^2),"") -> 244.3767583 | AF84: 127 | AG84: 187
A85: 83 | B85: Point 83 | C85: 997 | D85: 942 | G85: 65 | H85: Point 65 | I85: 1768 | J85: 1578 | L85: =IF(AND(ISNUMBER(I85:J86)),SQRT((I85-I86)^2+(J85-J86)^2),"") -> 28.23118843 | AF85: 161 | AG85: 65
A86: 84 | B86: Point 84 | C86: 2334 | D86: 523 | G86: 174 | H86: Point 174 | I86: 1794 | J86: 1589 | L86: =IF(AND(ISNUMBER(I86:J87)),SQRT((I86-I87)^2+(J86-J87)^2),"") -> 111.8302285 | AF86: 135 | AG86: 174
A87: 85 | B87: Point 85 | C87: 1264 | D87: 1090 | G87: 160 | H87: Point 160 | I87: 1729 | J87: 1498 | L87: =IF(AND(ISNUMBER(I87:J88)),SQRT((I87-I88)^2+(J87-J88)^2),"") -> 206.1940833 | AF87: 72 | AG87: 160
A88: 86 | B88: Point 86 | C88: 1699 | D88: 1294 | G88: 86 | H88: Point 86 | I88: 1699 | J88: 1294 | L88: =IF(AND(ISNUMBER(I88:J89)),SQRT((I88-I89)^2+(J88-J89)^2),"") -> 60.16643583 | AF88: 57 | AG88: 86
A89: 87 | B89: Point 87 | C89: 235 | D89: 1059 | G89: 96 | H89: Point 96 | I89: 1677 | J89: 1238 | L89: =IF(AND(ISNUMBER(I89:J90)),SQRT((I89-I90)^2+(J89-J90)^2),"") -> 267.5294376 | AF89: 31 | AG89: 96
A90: 88 | B90: Point 88 | C90: 2592 | D90: 248 | G90: 189 | H90: Point 189 | I90: 1423 | J90: 1322 | L90: =IF(AND(ISNUMBER(I90:J91)),SQRT((I90-I91)^2+(J90-J91)^2),"") -> 209.9761891 | AF90: 78 | AG90: 189
A91: 89 | B91: Point 89 | C91: 3642 | D91: 699 | G91: 143 | H91: Point 143 | I91: 1490 | J91: 1123 | L91: =IF(AND(ISNUMBER(I91:J92)),SQRT((I91-I92)^2+(J91-J92)^2),"") -> 281.256111 | AF91: 99 | AG91: 143
A92: 90 | B92: Point 90 | C92: 3599 | D92: 514 | G92: 64 | H92: Point 64 | I92: 1393 | J92: 859 | L92: =IF(AND(ISNUMBER(I92:J93)),SQRT((I92-I93)^2+(J92-J93)^2),"") -> 187.0855419 | AF92: 45 | AG92: 64
A93: 91 | B93: Point 91 | C93: 1766 | D93: 678 | G93: 150 | H93: Point 150 | I93: 1213 | J93: 910 | L93: =IF(AND(ISNUMBER(I93:J94)),SQRT((I93-I94)^2+(J93-J94)^2),"") -> 68.09552114 | AF93: 166 | AG93: 150
A94: 92 | B94: Point 92 | C94: 240 | D94: 619 | G94: 59 | H94: Point 59 | I94: 1179 | J94: 969 | L94: =IF(AND(ISNUMBER(I94:J95)),SQRT((I94-I95)^2+(J94-J95)^2),"") -> 147.8715659 | AF94: 33 | AG94: 59
A95: 93 | B95: Point 93 | C95: 1272 | D95: 246 | G95: 85 | H95: Point 85 | I95: 1264 | J95: 1090 | L95: =IF(AND(ISNUMBER(I95:J96)),SQRT((I95-I96)^2+(J95-J96)^2),"") -> 187.7791256 | AF95: 68 | AG95: 85
A96: 94 | B96: Point 94 | C96: 3503 | D96: 301 | G96: 18 | H96: Point 18 | I96: 1109 | J96: 1196 | L96: =IF(AND(ISNUMBER(I96:J97)),SQRT((I96-I97)^2+(J96-J97)^2),"") -> 219.14607 | AF96: 14 | AG96: 18
A97: 95 | B97: Point 95 | C97: 80 | D97: 1533 | G97: 6 | H97: Point 6 | I97: 1009 | J97: 1001 | L97: =IF(AND(ISNUMBER(I97:J98)),SQRT((I97-I98)^2+(J97-J98)^2),"") -> 40.80441153 | AF97: 187 | AG97: 6
A98: 96 | B98: Point 96 | C98: 1677 | D98: 1238 | G98: 40 | H98: Point 40 | I98: 1021 | J98: 962 | L98: =IF(AND(ISNUMBER(I98:J99)),SQRT((I98-I99)^2+(J98-J99)^2),"") -> 31.2409987 | AF98: 65 | AG98: 40
A99: 97 | B99: Point 97 | C99: 3766 | D99: 154 | G99: 83 | H99: Point 83 | I99: 997 | J99: 942 | L99: =IF(AND(ISNUMBER(I99:J100)),SQRT((I99-I100)^2+(J99-J100)^2),"") -> 95.35197953 | AF99: 174 | AG99: 83
A100: 98 | B100: Point 98 | C100: 3946 | D100: 459 | G100: 3 | H100: Point 3 | I100: 981 | J100: 848 | L100: =IF(AND(ISNUMBER(I100:J101)),SQRT((I100-I101)^2+(J100-J101)^2),"") -> 242.9156232 | AF100: 160 | AG100: 3
A101: 99 | B101: Point 99 | C101: 1994 | D101: 1852 | G101: 116 | H101: Point 116 | I101: 749 | J101: 920 | L101: =IF(AND(ISNUMBER(I101:J102)),SQRT((I101-I102)^2+(J101-J102)^2),"") -> 236.1037907 | AF101: 86 | AG101: 116
A102: 100 | B102: Point 100 | C102: 278 | D102: 165 | G102: 102 | H102: Point 102 | I102: 556 | J102: 1056 | L102: =IF(AND(ISNUMBER(I102:J103)),SQRT((I102-I103)^2+(J102-J103)^2),"") -> 65.00769185 | AF102: 96 | AG102: 102
A103: 101 | B103: Point 101 | C103: 3140 | D103: 1401 | G103: 9 | H103: Point 9 | I103: 555 | J103: 1121 | L103: =IF(AND(ISNUMBER(I103:J104)),SQRT((I103-I104)^2+(J103-J104)^2),"") -> 202.5882524 | AF103: 189 | AG103: 9
A104: 102 | B104: Point 102 | C104: 556 | D104: 1056 | G104: 10 | H104: Point 10 | I104: 464 | J104: 1302 | L104: =IF(AND(ISNUMBER(I104:J105)),SQRT((I104-I105)^2+(J104-J105)^2),"") -> 168.0773631 | AF104: 143 | AG104: 10
A105: 103 | B105: Point 103 | C105: 3675 | D105: 1522 | G105: 142 | H105: Point 142 | I105: 627 | J105: 1261 | L105: =IF(AND(ISNUMBER(I105:J106)),SQRT((I105-I106)^2+(J105-J106)^2),"") -> 152.4532715 | AF105: 64 | AG105: 142
A106: 104 | B106: Point 104 | C106: 1182 | D106: 1853 | G106: 20 | H106: Point 20 | I106: 778 | J106: 1282 | L106: =IF(AND(ISNUMBER(I106:J107)),SQRT((I106-I107)^2+(J106-J107)^2),"") -> 35.4682957 | AF106: 150 | AG106: 20
A107: 105 | B107: Point 105 | C107: 3595 | D107: 111 | G107: 25 | H107: Point 25 | I107: 811 | J107: 1295 | L107: =IF(AND(ISNUMBER(I107:J108)),SQRT((I107-I108)^2+(J107-J108)^2),"") -> 66.21178143 | AF107: 59 | AG107: 25
A108: 106 | B108: Point 106 | C108: 962 | D108: 1895 | G108: 114 | H108: Point 114 | I108: 839 | J108: 1355 | L108: =IF(AND(ISNUMBER(I108:J109)),SQRT((I108-I109)^2+(J108-J109)^2),"") -> 121.2353084 | AF108: 85 | AG108: 114
A109: 107 | B109: Point 107 | C109: 2030 | D109: 1186 | G109: 164 | H109: Point 164 | I109: 782 | J109: 1462 | L109: =IF(AND(ISNUMBER(I109:J110)),SQRT((I109-I110)^2+(J109-J110)^2),"") -> 224.8599564 | AF109: 18 | AG109: 164
A110: 108 | B110: Point 108 | C110: 3507 | D110: 1851 | G110: 182 | H110: Point 182 | I110: 563 | J110: 1513 | L110: =IF(AND(ISNUMBER(I110:J111)),SQRT((I110-I111)^2+(J110-J111)^2),"") -> 204.7876949 | AF110: 6 | AG110: 182
A111: 109 | B111: Point 109 | C111: 2642 | D111: 1269 | G111: 21 | H111: Point 21 | I111: 386 | J111: 1616 | L111: =IF(AND(ISNUMBER(I111:J112)),SQRT((I111-I112)^2+(J111-J112)^2),"") -> 217.5545909 | AF111: 40 | AG111: 21
A112: 110 | B112: Point 110 | C112: 3438 | D112: 901 | G112: 47 | H112: Point 47 | I112: 555 | J112: 1753 | L112: =IF(AND(ISNUMBER(I112:J113)),SQRT((I112-I113)^2+(J112-J113)^2),"") -> 176.4086166 | AF112: 83 | AG112: 47
A113: 111 | B113: Point 111 | C113: 3858 | D113: 1472 | G113: 133 | H113: Point 133 | I113: 731 | J113: 1741 | L113: =IF(AND(ISNUMBER(I113:J114)),SQRT((I113-I114)^2+(J113-J114)^2),"") -> 394.462926 | AF113: 3 | AG113: 133
A114: 112 | B114: Point 112 | C114: 2937 | D114: 1568 | G114: 82 | H114: Point 82 | I114: 1082 | J114: 1561 | L114: =IF(AND(ISNUMBER(I114:J115)),SQRT((I114-I115)^2+(J114-J115)^2),"") -> 91.35097153 | AF114: 116 | AG114: 82
A115: 113 | B115: Point 113 | C115: 376 | D115: 1018 | G115: 183 | H115: Point 183 | I115: 1090 | J115: 1652 | L115: =IF(AND(ISNUMBER(I115:J116)),SQRT((I115-I116)^2+(J115-J116)^2),"") -> 221.054292 | AF115: 102 | AG115: 183
A116: 114 | B116: Point 114 | C116: 839 | D116: 1355 | G116: 104 | H116: Point 104 | I116: 1182 | J116: 1853 | L116: =IF(AND(ISNUMBER(I116:J117)),SQRT((I116-I117)^2+(J116-J117)^2),"") -> 223.9732127 | AF116: 9 | AG116: 104
A117: 115 | B117: Point 115 | C117: 706 | D117: 1925 | G117: 106 | H117: Point 106 | I117: 962 | J117: 1895 | L117: =IF(AND(ISNUMBER(I117:J118)),SQRT((I117-I118)^2+(J117-J118)^2),"") -> 257.7518186 | AF117: 10 | AG117: 106
A118: 116 | B118: Point 116 | C118: 749 | D118: 920 | G118: 115 | H118: Point 115 | I118: 706 | J118: 1925 | L118: =IF(AND(ISNUMBER(I118:J119)),SQRT((I118-I119)^2+(J118-J119)^2),"") -> 146.5400969 | AF118: 142 | AG118: 115
A119: 117 | B119: Point 117 | C119: 298 | D119: 615 | G119: 12 | H119: Point 12 | I119: 571 | J119: 1982 | L119: =IF(AND(ISNUMBER(I119:J120)),SQRT((I119-I120)^2+(J119-J120)^2),"") -> 181.0331461 | AF119: 20 | AG119: 12
A120: 118 | B120: Point 118 | C120: 694 | D120: 552 | G120: 28 | H120: Point 28 | I120: 394 | J120: 1944 | L120: =IF(AND(ISNUMBER(I120:J121)),SQRT((I120-I121)^2+(J120-J121)^2),"") -> 411.1082582 | AF120: 25 | AG120: 28
A121: 119 | B121: Point 119 | C121: 387 | D121: 190 | G121: 151 | H121: Point 151 | I121: 3 | J121: 1817 | L121: =IF(AND(ISNUMBER(I121:J122)),SQRT((I121-I122)^2+(J121-J122)^2),"") -> 238.0336111 | AF121: 114 | AG121: 151
A122: 120 | B122: Point 120 | C122: 2801 | D122: 695 | G122: 56 | H122: Point 56 | I122: 149 | J122: 1629 | L122: =IF(AND(ISNUMBER(I122:J123)),SQRT((I122-I123)^2+(J122-J123)^2),"") -> 118.224363 | AF122: 164 | AG122: 56
A123: 121 | B123: Point 121 | C123: 3133 | D123: 1143 | G123: 95 | H123: Point 95 | I123: 80 | J123: 1533 | L123: =IF(AND(ISNUMBER(I123:J124)),SQRT((I123-I124)^2+(J123-J124)^2),"") -> 172.7946758 | AF123: 182 | AG123: 95
A124: 122 | B124: Point 122 | C124: 1517 | D124: 266 | G124: 148 | H124: Point 148 | I124: 177 | J124: 1390 | L124: =IF(AND(ISNUMBER(I124:J125)),SQRT((I124-I125)^2+(J124-J125)^2),"") -> 125.399362 | AF124: 21 | AG124: 148
A125: 123 | B125: Point 123 | C125: 1538 | D125: 224 | G125: 131 | H125: Point 131 | I125: 71 | J125: 1323 | L125: =IF(AND(ISNUMBER(I125:J126)),SQRT((I125-I126)^2+(J125-J126)^2),"") -> 166.291912 | AF125: 47 | AG125: 131
A126: 124 | B126: Point 124 | C126: 844 | D126: 520 | G126: 163 | H126: Point 163 | I126: 193 | J126: 1210 | L126: =IF(AND(ISNUMBER(I126:J127)),SQRT((I126-I127)^2+(J126-J127)^2),"") -> 148.946299 | AF126: 133 | AG126: 163
A127: 125 | B127: Point 125 | C127: 2639 | D127: 1239 | G127: 26 | H127: Point 26 | I127: 241 | J127: 1069 | L127: =IF(AND(ISNUMBER(I127:J128)),SQRT((I127-I128)^2+(J127-J128)^2),"") -> 11.66190379 | AF127: 82 | AG127: 26
A128: 126 | B128: Point 126 | C128: 3123 | D128: 217 | G128: 87 | H128: Point 87 | I128: 235 | J128: 1059 | L128: =IF(AND(ISNUMBER(I128:J129)),SQRT((I128-I129)^2+(J128-J129)^2),"") -> 146.840049 | AF128: 183 | AG128: 87
A129: 127 | B129: Point 127 | C129: 2489 | D129: 1520 | G129: 113 | H129: Point 113 | I129: 376 | J129: 1018 | L129: =IF(AND(ISNUMBER(I129:J130)),SQRT((I129-I130)^2+(J129-J130)^2),"") -> 45.48626166 | AF129: 104 | AG129: 113
A130: 128 | B130: Point 128 | C130: 3834 | D130: 1827 | G130: 55 | H130: Point 55 | I130: 401 | J130: 980 | L130: =IF(AND(ISNUMBER(I130:J131)),SQRT((I130-I131)^2+(J130-J131)^2),"") -> 130.0153837 | AF130: 106 | AG130: 55
A131: 129 | B131: Point 129 | C131: 3417 | D131: 1808 | G131: 178 | H131: =IF($G131<>"",INDEX(B$3:B$202,$G131),NA()) -> Point 178 | I131: =IF($G131<>"",INDEX(C$3:C$202,$G131),NA()) -> 399 | J131: =IF($G131<>"",INDEX(D$3:D$202,$G131),NA()) -> 850 | L131: =IF(AND(ISNUMBER(I131:J132)),SQRT((I131-I132)^2+(J131-J132)^2),"") -> 255.785066 | AF131: 115 | AG131: 178
A132: 130 | B132: Point 130 | C132: 2938 | D132: 543 | G132: 117 | H132: Point 117 | I132: 298 | J132: 615 | L132: =IF(AND(ISNUMBER(I132:J133)),SQRT((I132-I133)^2+(J132-J133)^2),"") -> 58.13776741 | AF132: 12 | AG132: 117
A133: 131 | B133: Point 131 | C133: 71 | D133: 1323 | G133: 92 | H133: Point 92 | I133: 240 | J133: 619 | L133: =IF(AND(ISNUMBER(I133:J134)),SQRT((I133-I134)^2+(J133-J134)^2),"") -> 125.6423495 | AF133: 28 | AG133: 92
A134: 132 | B134: Point 132 | C134: 3245 | D134: 1828 | G134: 141 | H134: Point 141 | I134: 171 | J134: 514 | L134: =IF(AND(ISNUMBER(I134:J135)),SQRT((I134-I135)^2+(J134-J135)^2),"") -> 195.3893549 | AF134: 151 | AG134: 141
A135: 133 | B135: Point 133 | C135: 731 | D135: 1741 | G135: 48 | H135: Point 48 | I135: 47 | J135: 363 | L135: =IF(AND(ISNUMBER(I135:J136)),SQRT((I135-I136)^2+(J135-J136)^2),"") -> 282.3473039 | AF135: 56 | AG135: 48
A136: 134 | B136: Point 134 | C136: 2312 | D136: 1270 | G136: 144 | H136: Point 144 | I136: 61 | J136: 81 | L136: =IF(AND(ISNUMBER(I136:J137)),SQRT((I136-I137)^2+(J136-J137)^2),"") -> 207.3282422 | AF136: 95 | AG136: 144
A137: 135 | B137: Point 135 | C137: 2426 | D137: 1851 | G137: 2 | H137: Point 2 | I137: 202 | J137: 233 | L137: =IF(AND(ISNUMBER(I137:J138)),SQRT((I137-I138)^2+(J137-J138)^2),"") -> 101.9803903 | AF137: 148 | AG137: 2
A138: 136 | B138: Point 136 | C138: 380 | D138: 478 | G138: 100 | H138: Point 100 | I138: 278 | J138: 165 | L138: =IF(AND(ISNUMBER(I138:J139)),SQRT((I138-I139)^2+(J138-J139)^2),"") -> 129.7574661 | AF138: 131 | AG138: 100
A139: 137 | B139: Point 137 | C139: 2310 | D139: 635 | G139: 30 | H139: Point 30 | I139: 264 | J139: 36 | L139: =IF(AND(ISNUMBER(I139:J140)),SQRT((I139-I140)^2+(J139-J140)^2),"") -> 283.2137002 | AF139: 163 | AG139: 30
A140: 138 | B140: Point 138 | C140: 2830 | D140: 775 | G140: 35 | H140: Point 35 | I140: 547 | J140: 25 | L140: =IF(AND(ISNUMBER(I140:J141)),SQRT((I140-I141)^2+(J140-J141)^2),"") -> 282.7189417 | AF140: 26 | AG140: 35
A141: 139 | B141: Point 139 | C141: 3829 | D141: 513 | G141: 62 | H141: Point 62 | I141: 634 | J141: 294 | L141: =IF(AND(ISNUMBER(I141:J142)),SQRT((I141-I142)^2+(J141-J142)^2),"") -> 167.871975 | AF141: 87 | AG141: 62
A142: 140 | B142: Point 140 | C142: 3684 | D142: 445 | G142: 196 | H142: Point 196 | I142: 468 | J142: 319 | L142: =IF(AND(ISNUMBER(I142:J143)),SQRT((I142-I143)^2+(J142-J143)^2),"") -> 52.61178575 | AF142: 113 | AG142: 196
A143: 141 | B143: Point 141 | C143: 171 | D143: 514 | G143: 37 | H143: Point 37 | I143: 460 | J143: 267 | L143: =IF(AND(ISNUMBER(I143:J144)),SQRT((I143-I144)^2+(J143-J144)^2),"") -> 106.1037228 | AF143: 55 | AG143: 37
A144: 142 | B144: Point 142 | C144: 627 | D144: 1261 | G144: 119 | H144: Point 119 | I144: 387 | J144: 190 | L144: =IF(AND(ISNUMBER(I144:J145)),SQRT((I144-I145)^2+(J144-J145)^2),"") -> 9 | AF144: 178 | AG144: 119
A145: 143 | B145: Point 143 | C145: 1490 | D145: 1123 | G145: 51 | H145: Point 51 | I145: 387 | J145: 199 | L145: =IF(AND(ISNUMBER(I145:J146)),SQRT((I145-I146)^2+(J145-J146)^2),"") -> 66.4003012 | AF145: 145 | AG145: 51
A146: 144 | B146: Point 144 | C146: 61 | D146: 81 | G146: 192 | H146: Point 192 | I146: 347 | J146: 252 | L146: =IF(AND(ISNUMBER(I146:J147)),SQRT((I146-I147)^2+(J146-J147)^2),"") -> 89.05054744 | AF146: 136 | AG146: 192
A147: 145 | B147: Point 145 | C147: 422 | D147: 542 | G147: 19 | H147: Point 19 | I147: 366 | J147: 339 | L147: =IF(AND(ISNUMBER(I147:J148)),SQRT((I147-I148)^2+(J147-J148)^2),"") -> 139.7032569 | AF147: 117 | AG147: 19
A148: 146 | B148: Point 146 | C148: 2698 | D148: 1221 | G148: 136 | H148: Point 136 | I148: 380 | J148: 478 | L148: =IF(AND(ISNUMBER(I148:J149)),SQRT((I148-I149)^2+(J148-J149)^2),"") -> 76.55063684 | AF148: 92 | AG148: 136
A149: 147 | B149: Point 147 | C149: 2372 | D149: 127 | G149: 145 | H149: Point 145 | I149: 422 | J149: 542 | L149: =IF(AND(ISNUMBER(I149:J150)),SQRT((I149-I150)^2+(J149-J150)^2),"") -> 272.1837615 | AF149: 141 | AG149: 145
A150: 148 | B150: Point 148 | C150: 177 | D150: 1390 | G150: 118 | H150: Point 118 | I150: 694 | J150: 552 | L150: =IF(AND(ISNUMBER(I150:J151)),SQRT((I150-I151)^2+(J150-J151)^2),"") -> 146.6049112 | AF150: 48 | AG150: 118
A151: 149 | B151: Point 149 | C151: 3084 | D151: 748 | G151: 5 | H151: Point 5 | I151: 781 | J151: 670 | L151: =IF(AND(ISNUMBER(I151:J152)),SQRT((I151-I152)^2+(J151-J152)^2),"") -> 120.2081528 | AF151: 2 | AG151: 5
A152: 150 | B152: Point 150 | C152: 1213 | D152: 910 | G152: 177 | H152: Point 177 | I152: 896 | J152: 705 | L152: =IF(AND(ISNUMBER(I152:J153)),SQRT((I152-I153)^2+(J152-J153)^2),"") -> 192.1691963 | AF152: 144 | AG152: 177
A153: 151 | B153: Point 151 | C153: 3 | D153: 1817 | G153: 124 | H153: Point 124 | I153: 844 | J153: 520 | L153: =IF(AND(ISNUMBER(I153:J154)),SQRT((I153-I154)^2+(J153-J154)^2),"") -> 87.36704184 | AF153: 30 | AG153: 124
A154: 152 | B154: Point 152 | C154: 1782 | D154: 995 | G154: 53 | H154: Point 53 | I154: 931 | J154: 512 | L154: =IF(AND(ISNUMBER(I154:J155)),SQRT((I154-I155)^2+(J154-J155)^2),"") -> 198.5875122 | AF154: 100 | AG154: 53
A155: 153 | B155: Point 153 | C155: 3896 | D155: 742 | G155: 60 | H155: Point 60 | I155: 1017 | J155: 333 | L155: =IF(AND(ISNUMBER(I155:J156)),SQRT((I155-I156)^2+(J155-J156)^2),"") -> 193.1320792 | AF155: 119 | AG155: 60
A156: 154 | B156: Point 154 | C156: 1829 | D156: 812 | G156: 44 | H156: Point 44 | I156: 1203 | J156: 385 | L156: =IF(AND(ISNUMBER(I156:J157)),SQRT((I156-I157)^2+(J156-J157)^2),"") -> 184.6997564 | AF156: 51 | AG156: 44
A157: 155 | B157: Point 155 | C157: 1286 | D157: 550 | G157: 155 | H157: Point 155 | I157: 1286 | J157: 550 | L157: =IF(AND(ISNUMBER(I157:J158)),SQRT((I157-I158)^2+(J157-J158)^2),"") -> 154.1557654 | AF157: 192 | AG157: 155
A158: 156 | B158: Point 156 | C158: 3017 | D158: 108 | G158: 4 | H158: Point 4 | I158: 1346 | J158: 408 | L158: =IF(AND(ISNUMBER(I158:J159)),SQRT((I158-I159)^2+(J158-J159)^2),"") -> 178.1010949 | AF158: 19 | AG158: 4
A159: 157 | B159: Point 157 | C159: 2132 | D159: 1432 | G159: 93 | H159: Point 93 | I159: 1272 | J159: 246 | L159: =IF(AND(ISNUMBER(I159:J160)),SQRT((I159-I160)^2+(J159-J160)^2),"") -> 245.8149711 | AF159: 196 | AG159: 93
A160: 158 | B160: Point 158 | C160: 2000 | D160: 1110 | G160: 122 | H160: Point 122 | I160: 1517 | J160: 266 | L160: =IF(AND(ISNUMBER(I160:J161)),SQRT((I160-I161)^2+(J160-J161)^2),"") -> 46.95742753 | AF160: 37 | AG160: 122
A161: 159 | B161: Point 159 | C161: 3317 | D161: 1966 | G161: 123 | H161: Point 123 | I161: 1538 | J161: 224 | L161: =IF(AND(ISNUMBER(I161:J162)),SQRT((I161-I162)^2+(J161-J162)^2),"") -> 127.6401191 | AF161: 35 | AG161: 123
A162: 160 | B162: Point 160 | C162: 1729 | D162: 1498 | G162: 188 | H162: Point 188 | I162: 1612 | J162: 328 | L162: =IF(AND(ISNUMBER(I162:J163)),SQRT((I162-I163)^2+(J162-J163)^2),"") -> 75.61084578 | AF162: 62 | AG162: 188
A163: 161 | B163: Point 161 | C163: 2408 | D163: 1747 | G163: 71 | H163: Point 71 | I163: 1541 | J163: 354 | L163: =IF(AND(ISNUMBER(I163:J164)),SQRT((I163-I164)^2+(J163-J164)^2),"") -> 227.3169593 | AF163: 118 | AG163: 71
A164: 162 | B164: Point 162 | C164: 3292 | D164: 152 | G164: 43 | H164: Point 43 | I164: 1529 | J164: 581 | L164: =IF(AND(ISNUMBER(I164:J165)),SQRT((I164-I165)^2+(J164-J165)^2),"") -> 145.7737974 | AF164: 5 | AG164: 43
A165: 163 | B165: Point 163 | C165: 193 | D165: 1210 | G165: 77 | H165: Point 77 | I165: 1604 | J165: 706 | L165: =IF(AND(ISNUMBER(I165:J166)),SQRT((I165-I166)^2+(J165-J166)^2),"") -> 251.9563454 | AF165: 177 | AG165: 77
A166: 164 | B166: Point 164 | C166: 782 | D166: 1462 | G166: 16 | H166: Point 16 | I166: 1725 | J166: 927 | L166: =IF(AND(ISNUMBER(I166:J167)),SQRT((I166-I167)^2+(J166-J167)^2),"") -> 88.72992731 | AF166: 124 | AG166: 16
A167: 165 | B167: Point 165 | C167: 2503 | D167: 352 | G167: 152 | H167: Point 152 | I167: 1782 | J167: 995 | L167: =IF(AND(ISNUMBER(I167:J168)),SQRT((I167-I168)^2+(J167-J168)^2),"") -> 184.7430648 | AF167: 53 | AG167: 152
A168: 166 | B168: Point 166 | C168: 1697 | D168: 1924 | G168: 63 | H168: Point 63 | I168: 1819 | J168: 814 | L168: =IF(AND(ISNUMBER(I168:J169)),SQRT((I168-I169)^2+(J168-J169)^2),"") -> 10.19803903 | AF168: 60 | AG168: 63
A169: 167 | B169: Point 167 | C169: 3821 | D169: 147 | G169: 154 | H169: Point 154 | I169: 1829 | J169: 812 | L169: =IF(AND(ISNUMBER(I169:J170)),SQRT((I169-I170)^2+(J169-J170)^2),"") -> 135.532284 | AF169: 44 | AG169: 154
A170: 168 | B170: Point 168 | C170: 3370 | D170: 791 | G170: 54 | H170: Point 54 | I170: 1766 | J170: 692 | L170: =IF(AND(ISNUMBER(I170:J171)),SQRT((I170-I171)^2+(J170-J171)^2),"") -> 14 | AF170: 155 | AG170: 54
A171: 169 | B171: Point 169 | C171: 3162 | D171: 367 | G171: 91 | H171: Point 91 | I171: 1766 | J171: 678 | L171: =IF(AND(ISNUMBER(I171:J172)),SQRT((I171-I172)^2+(J171-J172)^2),"") -> 230.4951193 | AF171: 4 | AG171: 91
A172: 170 | B172: Point 170 | C172: 3938 | D172: 516 | G172: 39 | H172: Point 39 | I172: 1828 | J172: 456 | L172: =IF(AND(ISNUMBER(I172:J173)),SQRT((I172-I173)^2+(J172-J173)^2),"") -> 149.8165545 | AF172: 93 | AG172: 39
A173: 171 | B173: Point 171 | C173: 2741 | D173: 1583 | G173: 73 | H173: Point 73 | I173: 1962 | J173: 389 | L173: =IF(AND(ISNUMBER(I173:J174)),SQRT((I173-I174)^2+(J173-J174)^2),"") -> 322.5678223 | AF173: 122 | AG173: 73
A174: 172 | B174: Point 172 | C174: 2330 | D174: 741 | G174: 15 | H174: Point 15 | I174: 2067 | J174: 694 | L174: =IF(AND(ISNUMBER(I174:J175)),SQRT((I174-I175)^2+(J174-J175)^2),"") -> 267.1666147 | AF174: 123 | AG174: 15
A175: 173 | B175: Point 173 | C175: 3918 | D175: 1088 | G175: 172 | H175: Point 172 | I175: 2330 | J175: 741 | L175: =IF(AND(ISNUMBER(I175:J176)),SQRT((I175-I176)^2+(J175-J176)^2),"") -> 107.8702925 | AF175: 188 | AG175: 172
A176: 174 | B176: Point 174 | C176: 1794 | D176: 1589 | G176: 137 | H176: Point 137 | I176: 2310 | J176: 635 | L176: =IF(AND(ISNUMBER(I176:J177)),SQRT((I176-I177)^2+(J176-J177)^2),"") -> 114.5425685 | AF176: 71 | AG176: 137
A177: 175 | B177: Point 175 | C177: 2929 | D177: 485 | G177: 84 | H177: Point 84 | I177: 2334 | J177: 523 | L177: =IF(AND(ISNUMBER(I177:J178)),SQRT((I177-I178)^2+(J177-J178)^2),"") -> 135.6244816 | AF177: 43 | AG177: 84
A178: 176 | B178: Point 176 | C178: 3453 | D178: 1998 | G178: 41 | H178: Point 41 | I178: 2347 | J178: 388 | L178: =IF(AND(ISNUMBER(I178:J179)),SQRT((I178-I179)^2+(J178-J179)^2),"") -> 262.1945842 | AF178: 77 | AG178: 41
A179: 177 | B179: Point 177 | C179: 896 | D179: 705 | G179: 147 | H179: Point 147 | I179: 2372 | J179: 127 | L179: =IF(AND(ISNUMBER(I179:J180)),SQRT((I179-I180)^2+(J179-J180)^2),"") -> 260.3574466 | AF179: 16 | AG179: 147
A180: 178 | B180: Point 178 | C180: 399 | D180: 850 | G180: 165 | H180: Point 165 | I180: 2503 | J180: 352 | L180: =IF(AND(ISNUMBER(I180:J181)),SQRT((I180-I181)^2+(J180-J181)^2),"") -> 94.04786016 | AF180: 152 | AG180: 165
A181: 179 | B181: Point 179 | C181: 2614 | D181: 195 | G181: 24 | H181: Point 24 | I181: 2597 | J181: 349 | L181: =IF(AND(ISNUMBER(I181:J182)),SQRT((I181-I182)^2+(J181-J182)^2),"") -> 61.98386887 | AF181: 63 | AG181: 24
A182: 180 | B182: Point 180 | C182: 2800 | D182: 653 | G182: 27 | H182: Point 27 | I182: 2658 | J182: 360 | L182: =IF(AND(ISNUMBER(I182:J183)),SQRT((I182-I183)^2+(J182-J183)^2),"") -> 130 | AF182: 154 | AG182: 27
A183: 181 | B183: Point 181 | C183: 2630 | D183: 20 | G183: 88 | H183: Point 88 | I183: 2592 | J183: 248 | L183: =IF(AND(ISNUMBER(I183:J184)),SQRT((I183-I184)^2+(J183-J184)^2),"") -> 57.38466694 | AF183: 54 | AG183: 88
A184: 182 | B184: Point 182 | C184: 563 | D184: 1513 | G184: 179 | H184: Point 179 | I184: 2614 | J184: 195 | L184: =IF(AND(ISNUMBER(I184:J185)),SQRT((I184-I185)^2+(J184-J185)^2),"") -> 81.0246876 | AF184: 91 | AG184: 179
A185: 183 | B185: Point 183 | C185: 1090 | D185: 1652 | G185: 79 | H185: Point 79 | I185: 2581 | J185: 121 | L185: =IF(AND(ISNUMBER(I185:J186)),SQRT((I185-I186)^2+(J185-J186)^2),"") -> 112.25863 | AF185: 39 | AG185: 79
A186: 184 | B186: Point 184 | C186: 2009 | D186: 1163 | G186: 181 | H186: Point 181 | I186: 2630 | J186: 20 | L186: =IF(AND(ISNUMBER(I186:J187)),SQRT((I186-I187)^2+(J186-J187)^2),"") -> 111.0855526 | AF186: 73 | AG186: 181
A187: 185 | B187: Point 185 | C187: 3876 | D187: 1165 | G187: 13 | H187: Point 13 | I187: 2656 | J187: 128 | L187: =IF(AND(ISNUMBER(I187:J188)),SQRT((I187-I188)^2+(J187-J188)^2),"") -> 544.3904849 | AF187: 15 | AG187: 13
A188: 186 | B188: Point 186 | C188: 3084 | D188: 774 | G188: 180 | H188: Point 180 | I188: 2800 | J188: 653 | L188: =IF(AND(ISNUMBER(I188:J189)),SQRT((I188-I189)^2+(J188-J189)^2),"") -> 42.01190308 | AF188: 172 | AG188: 180
A189: 187 | B189: Point 187 | C189: 1526 | D189: 1612 | G189: 120 | H189: Point 120 | I189: 2801 | J189: 695 | L189: =IF(AND(ISNUMBER(I189:J190)),SQRT((I189-I190)^2+(J189-J190)^2),"") -> 85.0940656 | AF189: 137 | AG189: 120
A190: 188 | B190: Point 188 | C190: 1612 | D190: 328 | G190: 138 | H190: Point 138 | I190: 2830 | J190: 775 | L190: =IF(AND(ISNUMBER(I190:J191)),SQRT((I190-I191)^2+(J190-J191)^2),"") -> 161.4496826 | AF190: 84 | AG190: 138
A191: 189 | B191: Point 189 | C191: 1423 | D191: 1322 | G191: 52 | H191: Point 52 | I191: 2901 | J191: 920 | L191: =IF(AND(ISNUMBER(I191:J192)),SQRT((I191-I192)^2+(J191-J192)^2),"") -> 86.03487665 | AF191: 41 | AG191: 52
A192: 190 | B192: Point 190 | C192: 3058 | D192: 1276 | G192: 8 | H192: Point 8 | I192: 2982 | J192: 949 | L192: =IF(AND(ISNUMBER(I192:J193)),SQRT((I192-I193)^2+(J192-J193)^2),"") -> 88.1192374 | AF192: 147 | AG192: 8
A193: 191 | B193: Point 191 | C193: 3782 | D193: 1865 | G193: 66 | H193: Point 66 | I193: 3023 | J193: 871 | L193: =IF(AND(ISNUMBER(I193:J194)),SQRT((I193-I194)^2+(J193-J194)^2),"") -> 97.30878686 | AF193: 165 | AG193: 66
A194: 192 | B194: Point 192 | C194: 347 | D194: 252 | G194: 38 | H194: Point 38 | I194: 3060 | J194: 781 | L194: =IF(AND(ISNUMBER(I194:J195)),SQRT((I194-I195)^2+(J194-J195)^2),"") -> 25 | AF194: 24 | AG194: 38
A195: 193 | B195: Point 193 | C195: 3904 | D195: 1444 | G195: 186 | H195: =IF($G195<>"",INDEX(B$3:B$202,$G195),NA()) -> Point 186 | I195: =IF($G195<>"",INDEX(C$3:C$202,$G195),NA()) -> 3084 | J195: =IF($G195<>"",INDEX(D$3:D$202,$G195),NA()) -> 774 | L195: =IF(AND(ISNUMBER(I195:J196)),SQRT((I195-I196)^2+(J195-J196)^2),"") -> 26 | AF195: 27 | AG195: 186
A196: 194 | B196: Point 194 | C196: 2191 | D196: 1579 | G196: 149 | H196: Point 149 | I196: 3084 | J196: 748 | L196: =IF(AND(ISNUMBER(I196:J197)),SQRT((I196-I197)^2+(J196-J197)^2),"") -> 153.8083223 | AF196: 88 | AG196: 149
A197: 195 | B197: Point 195 | C197: 3220 | D197: 1454 | G197: 34 | H197: Point 34 | I197: 2993 | J197: 624 | L197: =IF(AND(ISNUMBER(I197:J198)),SQRT((I197-I198)^2+(J197-J198)^2),"") -> 49.64876635 | AF197: 179 | AG197: 34
A198: 196 | B198: Point 196 | C198: 468 | D198: 319 | G198: 81 | H198: Point 81 | I198: 2944 | J198: 632 | L198: =IF(AND(ISNUMBER(I198:J199)),SQRT((I198-I199)^2+(J198-J199)^2),"") -> 89.20201791 | AF198: 13 | AG198: 81
A199: 197 | B199: Point 197 | C199: 3611 | D199: 1968 | G199: 130 | H199: Point 130 | I199: 2938 | J199: 543 | L199: =IF(AND(ISNUMBER(I199:J200)),SQRT((I199-I200)^2+(J199-J200)^2),"") -> 58.69412236 | AF199: 79 | AG199: 130
A200: 198 | B200: Point 198 | C200: 3114 | D200: 1629 | G200: 175 | H200: Point 175 | I200: 2929 | J200: 485 | L200: =IF(AND(ISNUMBER(I200:J201)),SQRT((I200-I201)^2+(J200-J201)^2),"") -> 261.1761857 | AF200: 181 | AG200: 175
... 3 more rows
